fUSD/lending_fUSD_20240922
["ID","MTS","AMOUNT","RATE_DAILY","PERIOD"]
[338890743,1727023518993,316.2234366,0.00011374,2]
[338890744,1727023519317,316.2234366,0.00011387,2]
[338890745,1727023519849,316.2234366,0.00011399,2]
[338890746,1727023520288,316.2234366,0.00011411,2]
[338890747,1727023520687,316.2234366,0.00011423,2]
[338890748,1727023521015,316.2234366,0.00011435,2]
[338890749,1727023521368,316.2234366,0.00011448,2]
[338890750,1727023521683,316.2234366,0.0001146,2]
[338890751,1727023522020,316.2234366,0.00011472,2]
[338890752,1727023522366,316.2234366,0.00011484,2]
[338890753,1727023522707,316.2234366,0.00011496,2]
[338890754,1727023523052,316.2234366,0.00011509,2]
[338890755,1727023523504,316.2234366,0.00011521,2]
[338890756,1727023523837,316.2234366,0.00011533,2]
[338890757,1727023524213,316.2234366,0.00011545,2]
[338890758,1727023524583,316.2234366,0.00011557,2]
[338890759,1727023524916,316.2234366,0.0001157,2]
[338890760,1727023525243,316.2234366,0.00011582,2]
[338890761,1727023525561,316.2234366,0.00011594,2]
[338890762,1727023525888,316.2234366,0.00011606,2]
[338890763,1727023526208,316.2234366,0.00011618,2]
[338890764,1727023526546,316.2234366,0.00011631,2]
[338890765,1727023526877,316.2234366,0.00011643,2]
[338890766,1727023527202,316.2234366,0.00011655,2]
[338890767,1727023527544,316.2234366,0.00011667,2]
[338890768,1727023527883,316.2234366,0.00011679,2]
[338890769,1727023528204,316.2234366,0.00011692,2]
[338890770,1727023528550,316.2234366,0.00011704,2]
[338890771,1727023528942,316.2234366,0.00011716,2]
[338890772,1727023529245,316.2234366,0.00011728,2]
[338890773,1727023529566,316.2234366,0.0001174,2]
[338890774,1727023529874,316.2234366,0.00011753,2]
[338890775,1727023530219,316.2234366,0.00011765,2]
[338890776,1727023530565,316.2234366,0.00011777,2]
[338890777,1727023530884,316.2234366,0.00011789,2]
[338890778,1727023531259,316.2234366,0.00011801,2]
[338890779,1727023531606,316.2234366,0.00011814,2]
[338890780,1727023531943,316.2234366,0.00011826,2]
[338890781,1727023532260,316.2234366,0.00011838,2]
[338890782,1727023532592,316.2234366,0.0001185,2]
[338890783,1727023532914,316.2234366,0.00011863,2]
[338890784,1727023533233,316.2234366,0.00011875,2]
[338890785,1727023533559,316.2234366,0.00011887,2]
[338890786,1727023533895,316.2234366,0.00011899,2]
[338890787,1727023534237,316.2234366,0.00011911,2]
[338890788,1727023534564,316.2234366,0.00011924,2]
[338890789,1727023534883,316.2234366,0.00011936,2]
[338890790,1727023535200,316.2234366,0.00011948,2]
[338890791,1727023535526,316.2234366,0.0001196,2]
[338890792,1727023535835,316.2234366,0.00011972,2]
[338890793,1727023536171,316.2234366,0.00011985,2]
[338890794,1727023536512,316.2234366,0.00011997,2]
[338890795,1727023536700,1000.0,0.00011871,2]
[338890796,1727023536826,316.2234366,0.00012009,2]
[338890797,1727023537145,316.2234366,0.00012021,2]
[338890798,1727023541535,150.0,0.00010874,2]
[338890799,1727023541855,150.0,0.00010888,2]
[338890800,1727023542332,150.0,0.00010902,2]
[338890801,1727023542890,150.0,0.00010916,2]
[338890802,1727023543193,150.0,0.0001093,2]
[338890803,1727023543499,150.0,0.00010943,2]
[338890804,1727023543811,150.0,0.00010957,2]
[338890805,1727023544128,150.0,0.00010971,2]
[338890806,1727023544487,150.0,0.00010985,2]
[338890807,1727023545196,150.0,0.00010999,2]
[338890808,1727023545507,150.0,0.00011013,2]
[338890809,1727023545802,150.0,0.00011027,2]
[338890810,1727023546565,150.0,0.00011041,2]
[338890811,1727023546871,150.0,0.00011055,2]
[338890812,1727023547177,150.0,0.00011068,2]
[338890813,1727023547502,150.0,0.00011082,2]
[338890814,1727023547821,150.0,0.00011096,2]
[338890815,1727023548145,150.0,0.0001111,2]
[338890816,1727023548474,150.0,0.00011124,2]
[338890817,1727023548791,150.0,0.00011138,2]
[338890818,1727023549267,150.0,0.00011152,2]
[338890819,1727023549461,150.0,0.00011166,2]
[338890820,1727023549971,150.0,0.00011179,2]
[338890821,1727023550274,150.0,0.00011193,2]
[338890822,1727023550623,150.0,0.00011207,2]
[338890823,1727023550956,150.0,0.00011221,2]
[338890824,1727023551278,150.0,0.00011235,2]
[338890825,1727023551645,150.0,0.00011249,2]
[338890826,1727023551994,150.0,0.00011263,2]
[338890827,1727023552318,150.0,0.00011277,2]
[338890828,1727023552639,150.0,0.00011291,2]
[338890829,1727023552957,150.0,0.00011304,2]
[338890830,1727023553648,150.0,0.00011318,2]
[338890831,1727023554020,150.0,0.00011332,2]
[338890832,1727023554355,150.0,0.00011346,2]
[338890833,1727023554664,150.0,0.0001136,2]
[338890834,1727023554978,150.0,0.00011374,2]
[338890835,1727023555306,150.0,0.00011388,2]
[338890836,1727023555639,150.0,0.00011402,2]
[338890837,1727023555971,150.0,0.00011416,2]
[338890838,1727023556281,150.0,0.00011429,2]
[338890839,1727023556607,150.0,0.00011443,2]
[338890840,1727023556955,150.0,0.00011457,2]
[338890841,1727023557299,150.0,0.00011471,2]
[338890842,1727023557632,150.0,0.00011485,2]
[338890843,1727023558256,150.0,0.00011499,2]
[338890844,1727023558624,150.0,0.00011513,2]
[338890845,1727023558946,150.0,0.00011527,2]
[338890846,1727023559254,150.0,0.00011541,2]
[338890847,1727023559568,150.0,0.00011554,2]
[338890848,1727023559885,150.0,0.00011568,2]
[338890849,1727023560198,150.0,0.00011582,2]
[338890850,1727023560624,150.0,0.00011596,2]
[338890851,1727023560932,150.0,0.0001161,2]
[338890852,1727023561715,150.0,0.00011624,2]
[338890853,1727023562034,150.0,0.00011638,2]
[338890854,1727023562405,150.0,0.00011652,2]
[338890855,1727023562722,150.0,0.00011666,2]
[338890856,1727023563243,150.0,0.00011679,2]
[338890857,1727023563457,150.0,0.00011693,2]
[338890858,1727023563787,150.0,0.00011707,2]
[338890859,1727023564097,150.0,0.00011721,2]
[338890860,1727023564420,150.0,0.00011735,2]
[338890861,1727023564734,150.0,0.00011749,2]
[338890862,1727023565061,150.0,0.00011763,2]
[338890863,1727023565404,150.0,0.00011777,2]
[338890864,1727023565750,150.0,0.00011791,2]
[338890865,1727023566094,150.0,0.00011804,2]
[338890866,1727023566418,150.0,0.00011818,2]
[338890867,1727023566740,150.0,0.00011832,2]
[338890868,1727023567067,150.0,0.00011846,2]
[338890869,1727023567363,150.0,0.0001186,2]
[338890870,1727023567684,150.0,0.00011874,2]
[338890871,1727023567995,150.0,0.00011888,2]
[338890872,1727023568324,150.0,0.00011902,2]
[338890873,1727023576216,150.87,0.00010874,2]
[338890874,1727023576535,150.87,0.00010886,2]
[338890875,1727023576858,150.87,0.00010898,2]
[338890876,1727023577185,150.87,0.00010911,2]
[338890877,1727023577516,150.87,0.00010923,2]
[338890878,1727023577854,150.87,0.00010935,2]
[338890879,1727023578169,150.87,0.00010947,2]
[338890880,1727023578487,150.87,0.00010959,2]
[338890881,1727023578800,150.87,0.00010972,2]
[338890882,1727023579117,150.87,0.00010984,2]
[338890883,1727023579468,150.87,0.00010996,2]
[338890884,1727023579928,150.87,0.00011008,2]
[338890885,1727023580568,150.87,0.0001102,2]
[338890886,1727023580892,150.87,0.00011033,2]
[338890887,1727023581206,150.87,0.00011045,2]
[338890888,1727023581560,150.87,0.00011057,2]
[338890889,1727023581879,150.87,0.00011069,2]
[338890890,1727023582196,150.87,0.00011081,2]
[338890891,1727023582503,150.87,0.00011094,2]
[338890892,1727023582811,150.87,0.00011106,2]
[338890893,1727023583179,150.87,0.00011118,2]
[338890894,1727023583498,150.87,0.0001113,2]
[338890895,1727023583836,150.87,0.00011142,2]
[338890896,1727023584170,150.87,0.00011155,2]
[338890897,1727023584494,150.87,0.00011167,2]
[338890898,1727023584818,150.87,0.00011179,2]
[338890899,1727023585146,150.87,0.00011191,2]
[338890900,1727023585870,150.87,0.00011203,2]
[338890901,1727023586205,150.87,0.00011216,2]
[338890902,1727023586554,150.87,0.00011228,2]
[338890903,1727023586904,150.87,0.0001124,2]
[338890904,1727023587222,150.87,0.00011252,2]
[338890905,1727023587545,150.87,0.00011265,2]
[338890906,1727023587863,150.87,0.00011277,2]
[338890907,1727023588633,150.87,0.00011289,2]
[338890908,1727023588954,150.87,0.00011301,2]
[338890909,1727023589883,150.87,0.00011313,2]
[338890910,1727023590185,150.87,0.00011326,2]
[338890911,1727023590360,150.87,0.00011338,2]
[338890912,1727023590681,150.87,0.0001135,2]
[338890913,1727023591015,150.87,0.00011362,2]
[338890914,1727023591713,150.87,0.00011374,2]
[338890915,1727023592060,150.87,0.00011387,2]
[338890916,1727023592357,150.87,0.00011399,2]
[338890917,1727023592676,150.87,0.00011411,2]
[338890918,1727023593155,150.87,0.00011423,2]
[338890919,1727023593488,150.87,0.00011435,2]
[338890920,1727023593837,150.87,0.00011448,2]
[338890921,1727023594149,150.87,0.0001146,2]
[338890922,1727023594671,150.87,0.00011472,2]
[338890923,1727023595002,150.87,0.00011484,2]
[338890924,1727023595745,150.87,0.00011496,2]
[338890925,1727023596104,150.87,0.00011509,2]
[338890926,1727023596439,150.87,0.00011521,2]
[338890927,1727023596749,150.87,0.00011533,2]
[338890928,1727023597055,150.87,0.00011545,2]
[338890929,1727023597564,150.87,0.00011557,2]
[338890930,1727023597885,150.87,0.0001157,2]
[338890931,1727023598217,150.87,0.00011582,2]
[338890932,1727023598536,150.87,0.00011594,2]
[338890933,1727023598892,150.87,0.00011606,2]
[338890934,1727023599233,150.87,0.00011618,2]
[338890935,1727023599557,150.87,0.00011631,2]
[338890936,1727023599866,150.87,0.00011643,2]
[338890937,1727023600339,150.87,0.00011655,2]
[338890938,1727023600556,150.87,0.00011667,2]
[338890939,1727023600888,150.87,0.00011679,2]
[338890940,1727023601218,150.87,0.00011692,2]
[338890941,1727023601554,150.87,0.00011704,2]
[338890942,1727023602111,150.87,0.00011716,2]
[338890943,1727023602891,150.87,0.00011728,2]
[338890944,1727023603235,150.87,0.0001174,2]
[338890945,1727023603580,150.87,0.00011753,2]
[338890946,1727023603896,150.87,0.00011765,2]
[338890947,1727023604218,150.87,0.00011777,2]
[338890948,1727023604544,150.87,0.00011789,2]
[338890949,1727023604912,150.87,0.00011801,2]
[338890950,1727023605241,150.87,0.00011814,2]
[338890951,1727023605561,150.87,0.00011826,2]
[338890952,1727023605886,150.87,0.00011838,2]
[338890953,1727023606221,150.87,0.0001185,2]
[338890954,1727023606551,150.87,0.00011863,2]
[338890955,1727023606905,150.87,0.00011875,2]
[338890956,1727023607649,150.87,0.00011887,2]
[338890957,1727023607955,150.87,0.00011899,2]
[338890958,1727023608296,150.87,0.00011911,2]
[338890959,1727023608639,150.87,0.00011924,2]
[338890960,1727023608966,150.87,0.00011936,2]
[338890961,1727023609283,150.87,0.00011948,2]
[338890962,1727023609587,150.87,0.0001196,2]
[338890963,1727023609900,150.87,0.00011972,2]
[338890964,1727023610225,150.87,0.00011985,2]
[338890965,1727023610845,150.87,0.00011997,2]
[338890966,1727023610875,150.87,0.00012009,2]
[338890967,1727023611179,150.87,0.00012021,2]
[338890968,1727023614776,150.0,0.00010874,2]
[338890969,1727023615094,150.0,0.00011277,2]
[338890970,1727023615413,150.0,0.00011679,2]
[338890971,1727023619894,-316.2234366,0.00012033,2]
[338890972,1727023619922,-150.87,0.00012033,2]
[338890973,1727023619949,-316.2234366,0.00012046,2]
[338890974,1727023619974,-150.87,0.00012046,2]
[338890975,1727023619995,-150.0,0.00012055,2]
[338890976,1727023620017,-316.2234366,0.00012058,2]
[338890977,1727023620040,-150.87,0.00012058,2]
[338890978,1727023620063,-316.2234366,0.0001207,2]
[338890979,1727023620087,-150.87,0.0001207,2]
[338890980,1727023620109,-500.0,0.00012073,2]
[338890981,1727023620131,-500.0,0.00012073,2]
[338890982,1727023620154,-300.0,0.00012074,2]
[338890983,1727023620177,-171.48637453,0.00012075,2]
[338890984,1727023620200,-151.47,0.00012075,2]
[338890985,1727023620223,-8057.75287987,0.00012075,2]
[338890986,1727023620246,-316.2234366,0.00012082,2]
[338890987,1727023620269,-150.87,0.00012082,2]
[338890988,1727023620292,-150.0,0.00012082,2]
[338890989,1727023620314,-150.0,0.00012083,2]
[338890990,1727023620336,-499.99,0.00012083,2]
[338890991,1727023620357,-166.38989364,0.00012084,2]
[338890992,1727023620382,-2256.82547596,0.00012084,2]
[338890993,1727023620406,-26753.07348773,0.00012084,2]
[338890994,1727023620429,-17312.71262467,0.00012085,2]
[338890995,1727023620450,-17312.71262467,0.00012085,2]
[338890996,1727023620475,-235232.11945593,0.00012085,2]
[338890997,1727023624591,150.0,0.00010874,2]
[338890998,1727023624908,150.0,0.00010916,2]
[338890999,1727023625232,150.0,0.00010957,2]
[338891000,1727023625550,150.0,0.00010999,2]
[338891001,1727023625878,150.0,0.00011041,2]
[338891002,1727023626184,150.0,0.00011082,2]
[338891003,1727023626518,150.0,0.00011124,2]
[338891004,1727023626867,150.0,0.00011166,2]
[338891005,1727023627169,150.0,0.00011207,2]
[338891006,1727023627475,150.0,0.00011249,2]
[338891007,1727023627819,150.0,0.00011291,2]
[338891008,1727023628152,150.0,0.00011332,2]
[338891009,1727023628480,150.0,0.00011374,2]
[338891010,1727023628854,150.0,0.00011416,2]
[338891011,1727023629541,150.0,0.00011457,2]
[338891012,1727023629856,150.0,0.00011499,2]
[338891013,1727023630170,150.0,0.00011541,2]
[338891014,1727023630511,150.0,0.00011582,2]
[338891015,1727023630826,150.0,0.00011624,2]
[338891016,1727023631338,150.0,0.00011666,2]
[338891017,1727023631466,150.0,0.00011707,2]
[338891018,1727023631792,150.0,0.00011749,2]
[338891019,1727023632114,150.0,0.00011791,2]
[338891020,1727023632433,150.0,0.00011832,2]
[338891021,1727023632757,150.0,0.00011874,2]
[338891022,1727023633084,150.0,0.00011916,2]
[338891023,1727023633403,150.0,0.00011957,2]
[338891024,1727023633709,150.0,0.00011999,2]
[338891025,1727023639722,150.0,0.00010874,2]
[338891026,1727023640045,150.0,0.00011116,2]
[338891027,1727023640367,150.0,0.00011357,2]
[338891028,1727023641116,150.0,0.00011599,2]
[338891029,1727023641593,150.0,0.00011841,2]
[338891036,1727023663402,510.0,0.00021917,120]
[338891037,1727023663697,7231.2082,0.00011985,2]
[338891038,1727023722246,1221.3552,0.00011985,2]
[338891039,1727023748179,191.22,0.00011842,2]
[338891048,1727023777428,380.7447,0.00011985,2]
[338891050,1727023831785,-150.0,0.00012041,2]
[338891051,1727023831795,-150.0,0.00012082,2]
[338891052,1727023831804,-150.0,0.00012082,2]
[338891053,1727023831813,-300.0,0.00012083,2]
[338891054,1727023831823,-150.0,0.00012084,2]
[338891055,1727023831831,-293.8058045,0.00012084,2]
[338891059,1727023835175,500.0,0.00010615,2]
[338891060,1727023835863,500.80464106,0.00010615,2]
[338891064,1727023838254,-2564.44491418,0.00012084,2]
[338891065,1727023838308,-10518.28602519,0.00012084,2]
[338891067,1727023838318,-10388.3200833,0.00012085,2]
[338891069,1727023838328,-10388.3200833,0.00012085,2]
[338891070,1727023838338,-320.39141945,0.00012085,2]
[338891072,1727023838347,-717.48215596,0.00012085,2]
[338891073,1727023838357,-1911882.46034383,0.00012085,2]
[338891094,1727023839863,-568.92573994,0.00012085,2]
[338891097,1727023839874,-314.604395,0.00012085,2]
[338891101,1727023839919,-1662.196,0.00012085,2]
[338891102,1727023839977,-1397.87511367,0.00012085,2]
[338891103,1727023840087,-1667.6766567,0.00012085,2]
[338891104,1727023840100,-857.26474601,0.00012085,2]
[338891105,1727023840145,-528103.53186154,0.00012085,2]
[338891188,1727023843031,-1469.43473488,0.00012085,2]
[338891189,1727023843087,-31438.56044849,0.00012085,2]
[338891190,1727023843145,-712.48905944,0.00012085,2]
[338891196,1727023845820,-973.64511204,0.00012085,2]
[338891197,1727023845831,-379.71008372,0.00012085,2]
[338891198,1727023845842,-1104.89183922,0.00012085,2]
[338891199,1727023845876,-57891.49658659,0.00012085,2]
[338891200,1727023845889,-369.15130269,0.00012085,2]
[338891201,1727023845901,-70864.27890022,0.00012085,2]
[338891202,1727023845911,-677.99999947,0.00012085,2]
[338891203,1727023845922,-451.34,0.00012085,2]
[338891204,1727023845933,-2091.0265999,0.00012085,2]
[338891205,1727023845944,-23118.69514802,0.00012085,2]
[338891206,1727023846003,155.21,0.00010959,2]
[338891207,1727023846015,-27773.1947002,0.00012085,2]
[338891208,1727023846026,-2247.9574,0.00012085,2]
[338891209,1727023846050,-384.50318454,0.00012085,2]
[338891210,1727023846061,-1033.05017563,0.00012085,2]
[338891213,1727023856937,595.81,0.00010615,2]
[338891214,1727023972734,6295.8896,0.00011985,2]
[338891215,1727023984214,309.04,9.973e-05,2]
[338891216,1727024010515,500.0,0.00011988,2]
[338891218,1727024141349,1000.0,0.0001187,2]
[338891219,1727024171718,250.0,0.00011864,2]
[338891220,1727024240886,1405.8639,0.00011984,2]
[338891221,1727024316269,250.0,0.00011848,2]
[338891222,1727024350012,165.59,0.00011846,2]
[338891223,1727024420154,8660.2304,0.00011985,2]
[338891224,1727024476025,250.0,0.00011864,2]
[338891226,1727024522257,169.91,0.00010959,2]
[338891227,1727024526512,11329.87342219,0.00011984,2]
[338891228,1727024528228,304.82,9.947e-05,2]
[338891229,1727024535649,857.183,0.00011985,2]
[338891230,1727024570649,39027.01,0.00011985,2]
[338891231,1727024596089,100000.0,0.00011985,2]
[338891232,1727024602802,404.21940854,0.00011791,2]
[338891233,1727024609284,500.0,0.00011988,2]
[338891234,1727024652292,200.0,0.00011928,2]
[338891235,1727024670098,1000.0,0.00011985,2]
[338891236,1727024672788,193.90837089,0.00011985,2]
[338891237,1727024703299,223.8937913,0.00010874,2]
[338891238,1727024705255,150.0,0.00010874,2]
[338891239,1727024705589,150.0,0.0001096,2]
[338891240,1727024706309,150.0,0.00011047,2]
[338891241,1727024706990,150.0,0.00011133,2]
[338891242,1727024707294,150.0,0.00011219,2]
[338891243,1727024707817,150.0,0.00011305,2]
[338891244,1727024708123,150.0,0.00011392,2]
[338891245,1727024708471,150.0,0.00011478,2]
[338891246,1727024708787,150.0,0.00011564,2]
[338891247,1727024709117,150.0,0.00011651,2]
[338891248,1727024709414,150.0,0.00011737,2]
[338891249,1727024709880,150.0,0.00011823,2]
[338891250,1727024710050,150.0,0.0001191,2]
[338891251,1727024710360,150.0,0.00011996,2]
[338891252,1727024770919,250.0,0.00011855,2]
[338891253,1727024778806,2123.9,0.00011855,2]
[338891254,1727024791050,1000.0,0.00011861,2]
[338891255,1727024838896,510.0,0.00021917,120]
[338891258,1727024888174,396.44,0.00011849,2]
[338891259,1727024907113,250.0,0.00011849,2]
[338891263,1727024975233,1500.0,0.00011845,2]
[338891264,1727025003396,150.0,0.00011849,2]
[338891265,1727025003604,150.0,0.00011849,2]
[338891266,1727025003929,150.0,0.00011849,2]
[338891267,1727025004134,150.0,0.00011849,2]
[338891268,1727025004341,244.26030413,0.00011849,2]
[338891269,1727025018550,272.3254622,0.00011926,2]
[338891270,1727025030882,6498.0575,0.00011985,2]
[338891281,1727025032049,-503.97595646,0.00012073,2]
[338891282,1727025032059,-170.10989544,0.00012082,2]
[338891283,1727025032077,-1997.06733564,0.00012084,2]
[338891284,1727025032088,-179.567,0.00012084,2]
[338891285,1727025032098,-459.012,0.00012084,2]
[338891286,1727025032107,-150.0,0.00012084,2]
[338891287,1727025032118,-2836.15741246,0.00012084,2]
[338891288,1727025032129,-337.01913656,0.00012084,2]
[338891289,1727025032141,-273.25766155,0.00012084,2]
[338891292,1727025038093,-3241.83416136,0.00012084,2]
[338891293,1727025038103,-320.39141945,0.00012085,2]
[338891294,1727025038112,-717.48215596,0.00012085,2]
[338891295,1727025038122,-3169.57735729,0.00012085,2]
[338891296,1727025038308,-500.0,0.00012085,2]
[338891297,1727025038420,-6718.74272601,0.00012085,2]
[338891298,1727025038430,-10388.3200833,0.00012085,2]
[338891299,1727025038439,-1916589.91127653,0.00012085,2]
[338891304,1727025040111,-472.09641342,0.00012085,2]
[338891305,1727025040123,-1113.29449878,0.00012085,2]
[338891388,1727025043183,-2444.77518648,0.00012085,2]
[338891389,1727025043194,-23573.58376527,0.00012085,2]
[338891390,1727025043345,-397.99662072,0.00012085,2]
[338891394,1727025046044,-296.42599999,0.00012085,2]
[338891395,1727025046213,-597.61986677,0.00012085,2]
[338891396,1727025065870,300.0,0.00011994,2]
[338891397,1727025128798,421.99265872,0.00011971,2]
[338891398,1727025154267,162.13,0.00010959,2]
[338891399,1727025164748,252.1002,0.00011985,2]
[338891400,1727025167434,318.01,0.00010177,2]
[338891401,1727025196750,1838.8936,0.00011985,2]
[338891402,1727025209450,500.0,0.00011988,2]
[338891403,1727025231052,950.0,0.00011988,2]
[338891404,1727025250464,1337.1486,0.00011984,2]
[338891405,1727025332023,250.0,0.00011984,2]
[338891406,1727025346384,500.0,0.00010615,2]
[338891407,1727025347065,200.0,0.00011984,2]
[338891408,1727025450329,151.89,0.00011921,2]
[338891409,1727025624933,424.92,0.00011802,2]
[338891410,1727025665059,150.0,0.00011998,2]
[338891411,1727025665124,150.0,0.00011879,2]
[338891412,1727025696103,150.0,0.00011859,2]
[338891413,1727025741284,386.44615838,0.00012002,2]
[338891414,1727025810313,500.0,0.00011957,2]
[338891415,1727025810847,500.0,0.00011987,2]
[338891416,1727025815638,200.0,0.00011957,2]
[338891417,1727025815924,200.0,0.00011987,2]
[338891418,1727025850951,1050.0,0.00011,2]
[338891419,1727025905078,150.0,0.00010874,2]
[338891420,1727025910579,150.00000001,0.00010874,2]
[338891421,1727025917423,150.0,0.00010874,2]
[338891422,1727025933758,316.02,9.897e-05,2]
[338891423,1727025957733,250.0,0.00011778,2]
[338891424,1727025982745,150.0,0.00010874,2]
[338891425,1727025983061,150.0,0.00010899,2]
[338891426,1727025983418,150.0,0.00010924,2]
[338891427,1727025983734,150.0,0.00010949,2]
[338891428,1727025984077,150.0,0.00010975,2]
[338891429,1727025984410,150.0,0.00011,2]
[338891430,1727025984734,150.0,0.00011025,2]
[338891431,1727025985076,150.0,0.0001105,2]
[338891432,1727025985397,150.0,0.00011075,2]
[338891433,1727025985716,150.0,0.00011101,2]
[338891434,1727025986263,150.0,0.00011126,2]
[338891435,1727025986397,150.0,0.00011151,2]
[338891436,1727025987159,150.0,0.00011176,2]
[338891437,1727025987479,150.0,0.00011201,2]
[338891438,1727025987825,150.0,0.00011226,2]
[338891439,1727025988173,150.0,0.00011252,2]
[338891440,1727025988507,150.0,0.00011277,2]
[338891441,1727025988877,150.0,0.00011302,2]
[338891442,1727025989177,150.0,0.00011327,2]
[338891443,1727025989512,150.0,0.00011352,2]
[338891444,1727025989876,150.0,0.00011377,2]
[338891445,1727025990184,150.0,0.00011403,2]
[338891446,1727025990486,150.0,0.00011428,2]
[338891447,1727025990839,150.0,0.00011453,2]
[338891448,1727025991167,150.0,0.00011478,2]
[338891449,1727025991478,150.0,0.00011503,2]
[338891450,1727025992262,150.0,0.00011528,2]
[338891451,1727025992588,150.0,0.00011554,2]
[338891452,1727025992910,150.0,0.00011579,2]
[338891453,1727025993263,150.0,0.00011604,2]
[338891454,1727025993611,1000.0,0.00011778,2]
[338891455,1727025993642,150.0,0.00011629,2]
[338891456,1727025993932,150.0,0.00011654,2]
[338891457,1727025994249,150.0,0.00011679,2]
[338891458,1727025994586,150.0,0.00011705,2]
[338891459,1727025994894,150.0,0.0001173,2]
[338891460,1727025995195,150.0,0.00011755,2]
[338891461,1727025995503,150.0,0.0001178,2]
[338891462,1727025995819,150.0,0.00011805,2]
[338891463,1727025996143,150.0,0.0001183,2]
[338891464,1727025996465,150.0,0.00011856,2]
[338891465,1727025996790,150.0,0.00011881,2]
[338891466,1727025997125,150.0,0.00011906,2]
[338891467,1727025998061,150.0,0.00011931,2]
[338891468,1727025998333,150.0,0.00011956,2]
[338891469,1727025998649,150.0,0.00011982,2]
[338891470,1727025998962,150.0,0.00012007,2]
[338891471,1727025999276,150.0,0.00012032,2]
[338891472,1727026011500,510.0,0.00021917,120]
[338891476,1727026095484,165.59,0.00011601,2]
[338891484,1727026211376,1926.03,0.00011555,2]
[338891496,1727026232247,-300.0,0.00012054,2]
[338891497,1727026232257,-1003.27384699,0.00012055,2]
[338891498,1727026232269,-26476.86615301,0.00012055,2]
[338891499,1727026232279,-150.0,0.00012057,2]
[338891500,1727026232289,-11923.00830833,0.0001206,2]
[338891501,1727026232298,-150.0,0.00012061,2]
[338891502,1727026232309,-150.0,0.00012069,2]
[338891503,1727026232318,-77113.65715731,0.0001207,2]
[338891504,1727026232371,-127088.02850474,0.0001207,2]
[338891505,1727026232383,-21186.4388296,0.0001207,2]
[338891506,1727026232395,-235427.61962043,0.0001207,2]
[338891507,1727026232413,-2423.19949662,0.0001207,2]
[338891508,1727026232424,-1354.61142599,0.0001207,2]
[338891509,1727026232436,-1150.95,0.0001207,2]